bitfinex/quotes_BTCUSD_20230901
["timestamp","ask_amount","ask_price","bid_price","bid_amount"]
[1693591509427,0.1503,25498.0,25497.0,0.72408678]
[1693591509848,0.1503,25498.0,25497.0,0.76108678]
[1693591515492,0.1703,25498.0,25497.0,0.78108678]
[1693591516257,0.1703,25498.0,25497.0,0.76108678]
[1693591517141,0.1503,25498.0,25497.0,0.78108678]
[1693591517544,0.1703,25498.0,25497.0,0.78108678]
[1693591518128,0.2503,25498.0,25497.0,0.78108678]
[1693591518513,0.2503,25498.0,25497.0,0.76108678]
[1693591519135,0.1503,25498.0,25497.0,0.76108678]
[1693591519336,0.2503,25498.0,25497.0,0.76108678]
[1693591520239,0.32242,25498.0,25497.0,0.76108678]
[1693591520453,0.32176,25498.0,25497.0,0.76108678]
[1693591520655,0.31792,25498.0,25497.0,0.76108678]
[1693591520858,0.2503,25498.0,25497.0,0.76108678]
[1693591521366,0.2503,25498.0,25497.0,0.79259606]
[1693591521999,0.2403,25498.0,25497.0,0.79259606]
[1693591522420,0.2403,25498.0,25497.0,0.81259606]
[1693591522828,0.1403,25498.0,25497.0,0.81259606]
[1693591523284,0.0194,25500.0,25497.0,0.81259606]
[1693591523488,0.6,25499.0,25498.0,0.40708678]
[1693591523695,0.6,25499.0,25498.0,0.70708678]
[1693591523925,0.0394,25500.0,25498.0,0.70708678]
[1693591524145,0.0394,25500.0,25499.0,0.3]
[1693591524335,0.0394,25500.0,25499.0,0.70708678]
[1693591524544,0.0194,25500.0,25499.0,0.70708678]
[1693591524951,0.0394,25500.0,25499.0,0.70708678]
[1693591528063,0.0394,25500.0,25499.0,0.78108678]
[1693591528672,0.0394,25500.0,25499.0,0.76108678]
[1693591529084,0.20546,25500.0,25499.0,0.46108678]
[1693591529288,0.26036,25500.0,25499.0,0.46108678]
[1693591529489,0.4046,25500.0,25499.0,0.46108678]
[1693591529691,0.4046,25500.0,25499.0,0.074]
[1693591529692,0.25556,25500.0,25499.0,0.074]
[1693591529893,0.2669,25500.0,25499.0,0.074]
[1693591530010,0.269,25500.0,25499.0,0.074]
[1693591530205,0.41036,25500.0,25499.0,0.074]
[1693591530421,0.7799891,25500.0,25499.0,0.074]
[1693591530628,0.7890291,25500.0,25499.0,0.074]
[1693591530824,0.7919091,25500.0,25499.0,0.074]
[1693591531025,0.8162291,25500.0,25499.0,0.074]
[1693591531232,1.1043091,25500.0,25499.0,0.037]
[1693591531460,1.1070091,25500.0,25499.0,0.037]
[1693591531675,0.6,25492.0,25491.0,0.03133855]
[1693591531876,0.75483471,25492.0,25491.0,0.38708678]
[1693591532423,0.6,25492.0,25491.0,0.38708678]
[1693591532961,0.62521808,25492.0,25491.0,0.38708678]
[1693591533609,0.62521808,25492.0,25491.0,0.68708678]
[1693591533997,0.62476918,25492.0,25491.0,0.68708678]
[1693591534197,0.62476918,25492.0,25491.0,0.72408678]
[1693591534405,0.62476918,25492.0,25491.0,0.76108678]
[1693591545954,0.75126918,25492.0,25491.0,0.46108678]
[1693591546198,0.75654918,25492.0,25491.0,0.46108678]
[1693591546542,0.85044918,25492.0,25491.0,0.074]
[1693591546734,0.84474918,25492.0,25491.0,0.074]
[1693591546967,0.98700918,25492.0,25491.0,0.074]
[1693591547091,0.97644918,25492.0,25491.0,0.074]
[1693591547298,0.97968918,25492.0,25491.0,0.074]
[1693591547526,0.80880918,25492.0,25491.0,0.074]
[1693591547686,0.80334918,25492.0,25491.0,0.074]
[1693591547892,0.64476918,25492.0,25491.0,0.46108678]
[1693591548096,0.62476918,25492.0,25491.0,0.46108678]
[1693591548505,0.62476918,25492.0,25491.0,0.76108678]
[1693591553143,0.70324918,25492.0,25491.0,0.76108678]
[1693591553459,0.70582918,25492.0,25491.0,0.76108678]
[1693591553579,0.69466918,25492.0,25491.0,0.76108678]
[1693591553781,0.69610918,25492.0,25491.0,0.76108678]
[1693591553989,0.69556918,25492.0,25491.0,0.76108678]
[1693591554186,0.69550918,25492.0,25491.0,0.76108678]
[1693591554413,0.69682918,25492.0,25491.0,0.76108678]
[1693591554746,0.69946918,25492.0,25491.0,0.76108678]
[1693591554905,0.69766918,25492.0,25491.0,0.76108678]
[1693591555090,0.69466918,25492.0,25491.0,0.76108678]
[1693591555286,0.69442918,25492.0,25491.0,0.76108678]
[1693591555497,0.69238918,25492.0,25491.0,0.76108678]
[1693591555711,0.69250918,25492.0,25491.0,0.76108678]
[1693591555910,0.68966918,25492.0,25491.0,0.76108678]
[1693591556132,0.62276918,25492.0,25491.0,0.76108678]
[1693591556497,0.68918918,25492.0,25491.0,0.46108678]
[1693591556681,0.69584918,25492.0,25491.0,0.46108678]
[1693591556816,0.70742918,25492.0,25491.0,0.46108678]
[1693591557017,0.71252918,25492.0,25491.0,0.46108678]
[1693591557385,0.70412918,25492.0,25491.0,0.46108678]
[1693591557518,0.69710918,25492.0,25491.0,0.46108678]
[1693591557716,0.69884918,25492.0,25491.0,0.46108678]
[1693591557913,0.69686918,25492.0,25491.0,0.46108678]
[1693591558136,0.69776918,25492.0,25491.0,0.46108678]
[1693591558340,0.70178918,25492.0,25491.0,0.46108678]
[1693591558541,0.71384918,25492.0,25491.0,0.46108678]
[1693591558793,0.70292918,25492.0,25491.0,0.46108678]
[1693591558958,0.69626918,25492.0,25491.0,0.46108678]
[1693591559164,0.69698918,25492.0,25491.0,0.46108678]
[1693591559390,0.71698918,25492.0,25491.0,0.46108678]
[1693591559612,0.72208918,25492.0,25491.0,0.46108678]
[1693591559787,0.64276918,25492.0,25491.0,0.46108678]
[1693591561383,0.64276918,25492.0,25491.0,0.074]
[1693591561584,0.73000918,25492.0,25491.0,0.074]
[1693591561807,0.73060918,25492.0,25491.0,0.074]
[1693591562018,0.73672918,25492.0,25491.0,0.074]
[1693591562221,0.73372918,25492.0,25491.0,0.074]
[1693591562432,0.64276918,25492.0,25491.0,0.074]
[1693591562634,0.64276918,25492.0,25491.0,0.46108678]
[1693591568004,0.64276918,25492.0,25491.0,0.48108678]
[1693591568430,0.02476918,25492.0,25491.0,0.48108678]
[1693591568633,0.02476918,25492.0,25491.0,0.78108678]
[1693591568837,0.5,25496.0,25491.0,0.78108678]
[1693591569069,0.5,25496.0,25495.0,0.58316678]
[1693591569279,0.098,25498.0,25495.0,0.90316678]
[1693591569539,0.06,25498.0,25497.0,0.38708678]
[1693591569736,0.08,25498.0,25497.0,0.38708678]
[1693591569937,0.098,25498.0,25497.0,0.40708678]
[1693591570565,0.5,25499.0,25497.0,0.40708678]
[1693591570808,0.5,25499.0,25498.0,0.40708678]
[1693591571218,0.5,25499.0,25498.0,0.70708678]
[1693591572220,0.5,25499.0,25498.0,0.74408678]
[1693591572422,0.5,25499.0,25498.0,0.70708678]
[1693591572843,0.5,25499.0,25498.0,0.78108678]
[1693591573177,0.5,25499.0,25498.0,0.74408678]
[1693591573378,0.5,25499.0,25498.0,0.78108678]
[1693591573979,0.5,25499.0,25498.0,0.74408678]
[1693591574381,0.5,25499.0,25498.0,0.78108678]
[1693591575357,0.1174,25500.0,25498.0,0.78108678]
[1693591575358,0.0194,25500.0,25498.0,0.78108678]
[1693591575542,0.0194,25500.0,25499.0,0.68708678]
[1693591575748,0.0194,25500.0,25499.0,0.70708678]
[1693591577099,0.04448767,25500.0,25499.0,0.70708678]
[1693591577301,0.04448767,25500.0,25499.0,0.74408678]
[1693591578332,0.04448767,25500.0,25499.0,0.78308678]
[1693591578546,0.0194,25500.0,25499.0,0.78308678]
[1693591578757,0.04447624,25500.0,25499.0,0.78308678]
[1693591579595,0.0194,25500.0,25499.0,0.78308678]
[1693591580936,0.0194,25500.0,25499.0,0.78108678]
[1693591582204,0.13848,25510.0,25506.0,0.002]
[1693591582407,0.78742,25514.0,25509.0,0.38908678]
[1693591582408,0.598,25514.0,25509.0,0.38908678]
[1693591582614,0.598,25514.0,25511.0,0.38708678]
[1693591582817,0.598,25514.0,25512.0,0.32]
[1693591583027,0.00038104,25513.0,25512.0,0.32]
[1693591583435,0.02707756,25513.0,25512.0,0.32]
[1693591583774,0.12507756,25513.0,25512.0,0.3]
[1693591583973,0.58,25511.0,25510.0,0.3]
[1693591584219,0.618,25511.0,25510.0,0.3]
[1693591584481,0.618,25511.0,25509.0,0.3]
[1693591584693,0.118,25510.0,25509.0,0.3]
[1693591584806,0.00037824,25510.0,25509.0,0.32]
[1693591585001,0.11837824,25510.0,25509.0,0.32]
[1693591585687,0.11837824,25510.0,25509.0,0.357]
[1693591586110,0.11837824,25510.0,25509.0,0.70708678]
[1693591586320,0.08037824,25510.0,25509.0,0.70708678]
[1693591586524,0.08037824,25510.0,25509.0,0.74408678]
[1693591586525,0.00037824,25510.0,25509.0,0.74408678]
[1693591587142,0.00037824,25510.0,25509.0,0.78108678]
[1693591587346,0.08037824,25510.0,25509.0,0.78108678]
[1693591587708,0.08037824,25510.0,25509.0,0.72408678]
[1693591587912,0.11837824,25510.0,25509.0,0.72408678]
[1693591589126,0.0654793,25510.0,25509.0,0.72408678]
[1693591589349,0.5834793,25511.0,25509.0,0.74408678]
[1693591589557,0.5834793,25511.0,25510.0,0.40708678]
[1693591589763,0.5,25511.0,25510.0,0.70708678]
[1693591590417,0.19059652,25513.0,25510.0,0.70708678]
[1693591590596,0.27407582,25513.0,25512.0,0.38708678]
[1693591590827,0.29407582,25513.0,25512.0,0.70708678]
[1693591591024,0.27407582,25513.0,25512.0,0.70708678]
[1693591591261,0.29407582,25513.0,25512.0,0.70708678]
[1693591591427,0.27407582,25513.0,25512.0,0.70708678]
[1693591591632,0.29407582,25513.0,25512.0,0.70708678]
[1693591592121,0.29407582,25513.0,25512.0,0.78108678]
[1693591593351,0.27407582,25513.0,25512.0,0.78108678]
[1693591594767,0.29407582,25513.0,25512.0,0.78108678]
[1693591595802,0.29407582,25513.0,25512.0,0.74408678]
[1693591596969,0.29407582,25513.0,25512.0,0.70708678]
[1693591597167,0.29407582,25513.0,25512.0,0.78108678]
[1693591597390,0.29407582,25513.0,25512.0,0.74408678]
[1693591597569,0.29407582,25513.0,25512.0,0.70708678]
[1693591597768,0.29407582,25513.0,25512.0,0.74408678]
[1693591597994,0.19059652,25513.0,25512.0,0.78108678]
[1693591598198,0.09217582,25513.0,25512.0,0.78108678]
[1693591598329,0.59217582,25513.0,25512.0,0.78108678]
[1693591598528,0.5654793,25513.0,25512.0,0.78108678]
[1693591598767,0.59237337,25513.0,25512.0,0.78108678]
[1693591600815,0.61037337,25513.0,25512.0,0.81220425]
[1693591605795,0.52689407,25513.0,25512.0,0.81220425]
[1693591606000,0.61037337,25513.0,25512.0,0.81220425]
[1693591607192,0.61039351,25513.0,25512.0,0.81220425]
[1693591611800,0.61039351,25513.0,25512.0,0.79220425]
[1693591612010,0.63039351,25513.0,25512.0,0.79220425]
[1693591612245,0.70089351,25513.0,25512.0,0.49220425]
[1693591612457,0.63039351,25513.0,25512.0,0.49220425]
[1693591614641,0.63039351,25513.0,25512.0,0.51220425]
[1693591618045,0.61039351,25513.0,25512.0,0.81220425]
[1693591618201,0.60624351,25513.0,25512.0,0.81220425]
[1693591619028,0.60541651,25513.0,25512.0,0.81220425]
[1693591620202,0.60525151,25513.0,25512.0,0.81220425]
[1693591623763,0.60525151,25513.0,25512.0,0.90593791]
[1693591623967,0.60525151,25513.0,25512.0,0.81220425]
[1693591624403,0.60525151,25513.0,25512.0,0.90593791]
[1693591625419,0.60525151,25513.0,25512.0,1.50995368]
[1693591625621,0.60525151,25513.0,25512.0,1.41622002]
[1693591627401,0.60525151,25513.0,25512.0,1.50995368]
[1693591628913,0.53977221,25513.0,25512.0,1.50995368]
[1693591629111,0.43686571,25516.0,25512.0,1.93417438]
[1693591629320,0.49538362,25517.0,25515.0,0.38708678]
[1693591629543,0.49538362,25517.0,25516.0,1.17050205]
[1693591629544,0.48229362,25517.0,25516.0,1.17050205]
[1693591629974,0.48229362,25517.0,25516.0,1.40527598]
[1693591630179,0.41881432,25517.0,25516.0,1.40527598]
[1693591630385,0.48229362,25517.0,25516.0,1.40527598]
[1693591630906,0.48229362,25517.0,25516.0,1.17050205]
[1693591631106,0.48229362,25517.0,25516.0,1.40530988]
[1693591631311,0.48229362,25517.0,25516.0,1.44230988]
[1693591631513,0.48112263,25517.0,25516.0,1.44230988]
[1693591631715,0.48112263,25517.0,25516.0,1.39533534]
[1693591631926,0.48112263,25517.0,25516.0,1.34833544]
[1693591632337,0.48112263,25517.0,25516.0,1.50097706]
[1693591632540,0.48112263,25517.0,25516.0,1.53797706]
[1693591633449,0.0394,25519.0,25516.0,1.53797706]
[1693591633675,0.0394,25519.0,25518.0,0.38708678]
[1693591633882,0.0394,25519.0,25518.0,1.17045445]
[1693591634409,0.0194,25520.0,25518.0,1.40520488]
[1693591634585,0.0194,25520.0,25519.0,1.35825185]
[1693591635221,0.0194,25520.0,25519.0,1.59294841]
[1693591635426,0.0194,25520.0,25519.0,1.5929614]
[1693591635640,0.0194,25520.0,25519.0,1.35821097]
[1693591635840,0.0194,25520.0,25519.0,1.6299614]
[1693591636313,0.0194,25520.0,25519.0,1.39521097]
[1693591636678,0.04019688,25520.0,25519.0,1.6299614]
[1693591637106,0.04019688,25520.0,25519.0,1.6669614]
[1693591637451,0.04019688,25520.0,25519.0,1.49920488]
[1693591637633,0.04019688,25520.0,25519.0,1.26445445]
[1693591638429,0.04019688,25520.0,25519.0,1.46201041]
[1693591638806,0.04019688,25520.0,25519.0,1.68659084]
[1693591639064,0.04019688,25520.0,25519.0,1.3851471]
[1693591639199,0.04019688,25520.0,25519.0,0.83788565]
[1693591639408,0.04019688,25520.0,25519.0,1.0155783]
[1693591640147,0.04019688,25520.0,25519.0,0.9785783]
[1693591640354,0.0194,25522.0,25519.0,1.0155783]
[1693591640489,0.0194,25522.0,25521.0,0.38708678]
[1693591640696,0.0194,25522.0,25521.0,0.70708678]
[1693591641563,0.0194,25522.0,25521.0,0.74408678]
[1693591641981,0.0194,25522.0,25521.0,0.78108678]
[1693591644721,0.03896514,25522.0,25521.0,0.78108678]
[1693591645098,0.0194,25522.0,25521.0,0.78108678]
[1693591651878,0.00788,25522.0,25521.0,0.87488565]
[1693591652079,0.00788,25522.0,25521.0,1.38500085]
[1693591652282,0.00788,25522.0,25521.0,1.59258128]
[1693591652486,0.00788,25522.0,25521.0,1.45188863]
[1693591652640,0.00788,25522.0,25521.0,1.57468863]
[1693591653323,0.00788,25522.0,25521.0,1.7151688]
[1693591653495,0.00788,25522.0,25521.0,8.40320363]
[1693591653820,0.00788,25522.0,25521.0,9.04120863]
[1693591654276,0.00788,25522.0,25521.0,7.77194363]
[1693591654481,0.00723131,25524.0,25522.0,0.02]
[1693591654620,0.1651,25530.0,25523.0,1.03322238]
[1693591654815,0.1651,25530.0,25529.0,0.50988678]
[1693591655016,0.1651,25530.0,25529.0,0.82988678]
[1693591655240,0.18583763,25530.0,25529.0,0.82988678]
[1693591656493,0.18583763,25530.0,25529.0,0.86688678]
[1693591657214,0.18583763,25530.0,25529.0,0.90388678]
[1693591658149,0.1651,25530.0,25529.0,0.90388678]
[1693591658703,0.1651,25530.0,25529.0,0.86688678]
[1693591659217,0.1651,25530.0,25529.0,0.90388678]
[1693591659369,0.1651,25530.0,25529.0,0.86688678]
[1693591659564,0.1886,25534.0,25529.0,0.86688678]
[1693591659767,0.1886,25534.0,25533.0,0.38708678]
[1693591659988,0.0194,25536.0,25533.0,0.68708678]
[1693591660229,0.0194,25536.0,25535.0,0.70565678]
[1693591660423,0.0194,25536.0,25535.0,1.02565678]
[1693591660628,0.05407954,25542.0,25537.0,0.06]
[1693591660874,0.195,25540.0,25538.0,0.38708678]
[1693591661052,0.23642,25541.0,25538.0,0.38708678]
[1693591661250,0.23702,25541.0,25538.0,0.38708678]
[1693591661427,0.1655,25541.0,25538.0,0.38708678]
[1693591662407,0.23288,25541.0,25538.0,0.38708678]
[1693591662657,0.23288,25541.0,25538.0,0.42408678]
[1693591662658,0.1655,25541.0,25538.0,0.42408678]
[1693591662833,0.2883,25541.0,25538.0,0.42408678]
[1693591663034,0.18898,25540.0,25538.0,0.46208678]
[1693591663235,0.21946,25540.0,25538.0,0.42408678]
[1693591663462,0.21946,25540.0,25538.0,0.46208678]
[1693591663463,0.07632,25539.0,25538.0,0.46208678]
[1693591663616,0.07632,25539.0,25538.0,0.075]
[1693591663617,0.61099471,25539.0,25538.0,0.075]
[1693591663817,1.18926168,25539.0,25538.0,0.075]
[1693591664036,1.75260466,25539.0,25527.0,0.06]
[1693591664250,0.1228,25536.0,25528.0,0.38708678]
[1693591664440,0.5,25533.0,25523.0,0.02]
[1693591664652,0.15483471,25532.0,25524.0,0.38708678]
[1693591664868,0.1228,25526.0,25524.0,0.38708678]
[1693591665069,0.15483471,25525.0,25524.0,0.38708678]
[1693591665541,0.1228,25526.0,25524.0,0.38708678]
[1693591666093,0.003,25525.0,25524.0,0.42408678]
[1693591666714,0.003,25526.0,25524.0,0.48408678]
[1693591666919,0.01817698,25525.0,25524.0,0.54072238]
[1693591667120,0.01817698,25525.0,25524.0,0.44708678]
[1693591667319,0.02117698,25525.0,25524.0,0.48408678]
[1693591667521,0.1646,25528.0,25524.0,0.74708678]
[1693591667868,0.1646,25528.0,25527.0,0.19587]
[1693591667995,0.1646,25528.0,25527.0,0.58295678]
[1693591668193,0.09408,25531.0,25527.0,0.58295678]
[1693591668441,0.09192,25531.0,25528.0,0.38708678]
[1693591668618,0.09048,25531.0,25528.0,0.38708678]
[1693591668813,0.237822,25531.0,25528.0,0.38708678]
[1693591669152,0.236382,25531.0,25528.0,0.38708678]
[1693591669357,0.07086,25530.0,25528.0,0.38708678]
[1693591669561,0.239522,25531.0,25528.0,0.38708678]
[1693591669770,0.238142,25531.0,25528.0,0.38708678]
[1693591669973,0.07338,25530.0,25528.0,0.38708678]
[1693591670171,0.237602,25531.0,25528.0,0.42408678]
[1693591670347,0.233642,25531.0,25528.0,0.42408678]
[1693591670560,0.234362,25531.0,25528.0,0.42408678]
[1693591670879,0.235082,25531.0,25528.0,0.42408678]
[1693591671084,0.231162,25531.0,25528.0,0.42408678]
[1693591671285,0.234122,25531.0,25528.0,0.46108678]
[1693591671589,0.234062,25531.0,25528.0,0.46108678]
[1693591671733,0.237122,25531.0,25528.0,0.46108678]
[1693591671960,0.237122,25531.0,25528.0,0.074]
[1693591671961,0.237602,25531.0,25528.0,0.074]
[1693591672091,0.10674,25530.0,25528.0,0.074]
[1693591672307,0.10626,25530.0,25528.0,0.074]
[1693591672505,0.1086,25530.0,25528.0,0.074]
[1693591672702,0.0936,25530.0,25528.0,0.074]
[1693591672899,0.08838,25530.0,25528.0,0.037]
[1693591673106,0.08868,25530.0,25528.0,0.037]
[1693591673304,0.09042,25530.0,25528.0,0.074]
[1693591673504,0.081,25530.0,25528.0,0.074]
[1693591673704,0.07986,25530.0,25528.0,0.074]
[1693591674035,0.0894,25530.0,25528.0,0.037]
[1693591674210,0.10332,25530.0,25528.0,0.037]
[1693591674412,0.0771,25529.0,25528.0,0.074]
[1693591674745,0.08016,25529.0,25528.0,0.074]
[1693591675109,0.08406,25529.0,25528.0,0.074]
[1693591675280,0.08466,25529.0,25528.0,0.074]
[1693591675481,0.10202,25530.0,25528.0,0.037]
[1693591675725,0.09858,25530.0,25527.0,0.19587]
[1693591675950,0.0963,25530.0,25528.0,0.037]
[1693591676059,0.002,25529.0,25528.0,0.074]
[1693591676501,0.002,25529.0,25528.0,0.037]
[1693591676905,0.07568,25529.0,25528.0,0.037]
[1693591677178,0.002,25529.0,25528.0,0.42408678]
[1693591677395,0.07992,25530.0,25528.0,0.42408678]
[1693591677396,0.233322,25531.0,25528.0,0.42408678]
[1693591677550,0.002,25530.0,25528.0,0.46108678]
[1693591677755,0.002,25530.0,25529.0,0.38708678]
[1693591677970,0.08324,25530.0,25529.0,0.38708678]
[1693591678189,0.08112,25530.0,25529.0,0.38708678]
[1693591678567,0.07554,25530.0,25529.0,0.38708678]
[1693591678776,0.07632,25530.0,25529.0,0.38708678]
[1693591678987,0.07638,25530.0,25529.0,0.38708678]
[1693591679238,0.07832,25530.0,25529.0,0.41608678]
[1693591679439,0.07832,25530.0,25529.0,0.44008678]
[1693591679641,0.002,25530.0,25529.0,0.44008678]
[1693591680104,0.07028,25530.0,25529.0,0.44008678]
[1693591680284,0.07466,25530.0,25529.0,0.44008678]
[1693591680509,0.07262,25530.0,25529.0,0.44008678]
[1693591680750,0.07304,25530.0,25529.0,0.44008678]
[1693591680972,0.07394,25530.0,25529.0,0.44008678]
[1693591681449,0.07244,25530.0,25529.0,0.44008678]
[1693591681674,0.07304,25530.0,25529.0,0.44008678]
[1693591681842,0.09498376,25530.0,25529.0,0.44008678]
[1693591682044,0.02268376,25530.0,25529.0,0.44008678]
[1693591682625,0.08874376,25530.0,25529.0,0.44008678]
[1693591682991,0.08928376,25530.0,25529.0,0.44008678]
[1693591683209,0.08868376,25530.0,25529.0,0.44008678]
[1693591683413,0.08880376,25530.0,25529.0,0.44008678]
[1693591683528,0.08952376,25530.0,25529.0,0.44008678]
[1693591683724,0.02268376,25530.0,25529.0,0.46008678]
[1693591683940,0.00546276,25530.0,25529.0,0.92008678]
[1693591684153,0.00202876,25530.0,25529.0,0.92008678]
[1693591684358,0.1638,25538.0,25531.0,0.08]
[1693591684560,0.4547,25540.0,25536.0,0.19579]
[1693591684776,0.1844539,25539.0,25537.0,0.38708678]
[1693591684975,0.2620339,25539.0,25537.0,0.38708678]
[1693591685181,0.0816,25539.0,25537.0,0.38708678]
[1693591685395,0.08166,25539.0,25537.0,0.38708678]
[1693591685592,0.08148,25539.0,25537.0,0.38708678]
[1693591685841,0.06588,25538.0,25537.0,0.39708678]
[1693591686046,0.0831,25539.0,25537.0,0.39708678]
[1693591686260,0.08376,25539.0,25537.0,0.39708678]
[1693591686461,0.08502,25539.0,25537.0,0.39708678]
[1693591686669,0.08472,25539.0,25537.0,0.38708678]
[1693591686814,0.08292,25539.0,25537.0,0.39608678]
[1693591687029,0.08346,25539.0,25537.0,0.40608678]
[1693591687226,0.0849,25539.0,25537.0,0.40608678]
[1693591687425,0.1228,25538.0,25537.0,0.40608678]
[1693591688233,0.1228,25538.0,25537.0,0.40708678]
[1693591688430,0.1228,25538.0,25537.0,0.41708678]
[1693591688853,0.1228,25538.0,25537.0,0.40708678]
[1693591689059,0.1228,25538.0,25537.0,0.41708678]
[1693591689687,0.1228,25538.0,25537.0,0.43708678]
[1693591690091,0.1228,25538.0,25537.0,0.44608678]
[1693591690491,0.19468,25539.0,25537.0,0.48608678]
[1693591690693,0.1228,25539.0,25537.0,0.48608678]
[1693591690939,0.1912,25538.0,25537.0,0.40608678]
[1693591691059,0.20542,25538.0,25537.0,0.50608678]
[1693591691266,0.1228,25538.0,25537.0,0.40708678]
[1693591691528,0.1228,25538.0,25537.0,0.48708678]
[1693591691773,0.14216519,25538.0,25537.0,0.49708678]
[1693591691966,0.14216519,25538.0,25537.0,0.48708678]
[1693591692169,0.01936519,25538.0,25537.0,0.50608678]
[1693591692771,0.1228,25538.0,25537.0,0.50608678]
[1693591693382,0.1228,25538.0,25537.0,0.49708678]
[1693591693611,0.1228,25538.0,25537.0,0.50608678]
[1693591694601,0.2077,25538.0,25537.0,0.48608678]
[1693591694806,0.2077,25538.0,25537.0,0.019]
[1693591694807,0.26602,25538.0,25537.0,0.019]
[1693591695008,0.45388,25538.0,25537.0,0.019]
[1693591695184,0.50296,25538.0,25532.0,0.00098543]
[1693591695393,0.15483471,25537.0,25530.0,0.04]
[1693591695594,0.1228,25531.0,25530.0,0.42708678]
[1693591695796,0.27763471,25531.0,25530.0,0.42708678]
[1693591696049,0.1228,25531.0,25530.0,0.42708678]
[1693591696205,0.21682,25531.0,25530.0,0.42708678]
[1693591696383,0.21646,25531.0,25530.0,0.42708678]
[1693591696750,0.2107,25531.0,25530.0,0.42708678]
[1693591696936,0.1420592,25531.0,25530.0,0.42708678]
[1693591697140,0.1420592,25531.0,25530.0,0.40708678]
[1693591697344,0.1420592,25531.0,25530.0,0.48708678]
[1693591697730,0.1430592,25531.0,25530.0,0.52008678]
[1693591697938,0.1440592,25531.0,25530.0,0.55408678]
[1693591698188,0.0202592,25531.0,25530.0,0.90008678]
[1693591698403,0.0192592,25531.0,25530.0,0.86708678]
[1693591698602,0.0205752,25531.0,25530.0,0.94108678]
[1693591698805,0.001,25531.0,25530.0,0.90408678]
[1693591699009,0.002,25531.0,25530.0,0.94108678]
[1693591699352,0.001,25531.0,25530.0,0.90408678]
[1693591699576,0.002,25531.0,25530.0,0.94118678]
[1693591700025,0.001,25531.0,25530.0,0.90418678]
[1693591700205,0.001,25531.0,25530.0,0.94118678]
[1693591700410,0.002,25531.0,25530.0,0.94118678]
[1693591702269,0.002,25531.0,25530.0,1.03482238]
[1693591702949,0.002,25531.0,25530.0,1.15762238]
[1693591703150,0.001863,25531.0,25530.0,1.15762238]
[1693591704829,0.001863,25531.0,25530.0,1.06398678]
[1693591706536,0.001863,25531.0,25530.0,1.07556348]
[1693591708180,0.001863,25531.0,25530.0,1.16919908]
[1693591709057,0.001863,25531.0,25530.0,1.07556348]
[1693591709262,0.001863,25531.0,25530.0,1.28919908]
[1693591711286,0.001863,25531.0,25530.0,1.79908954]
[1693591711664,0.001863,25531.0,25530.0,1.89280167]
[1693591711924,0.001863,25531.0,25530.0,7.89557157]
[1693591712136,0.0194,25543.0,25542.0,0.06]
[1693591712334,0.0194,25543.0,25542.0,0.44708678]
[1693591712709,0.03712589,25543.0,25542.0,0.44708678]
[1693591713918,0.03712589,25543.0,25542.0,0.47808678]
[1693591714141,0.03712589,25543.0,25542.0,0.67382678]
[1693591714263,0.03712589,25543.0,25542.0,0.66182678]
[1693591714463,0.03212589,25543.0,25542.0,0.64282678]
[1693591714659,0.03212589,25543.0,25542.0,0.67982678]
[1693591715375,0.23412589,25543.0,25542.0,0.67982678]
[1693591715573,0.23412589,25543.0,25542.0,0.71782678]
[1693591715574,0.23118589,25543.0,25542.0,0.71782678]
[1693591715790,0.22866589,25543.0,25542.0,0.71782678]
[1693591715979,0.22464589,25543.0,25542.0,0.67982678]
[1693591716207,0.22674589,25543.0,25542.0,0.67982678]
[1693591716451,0.22686589,25543.0,25542.0,0.67982678]
[1693591716580,0.10244589,25543.0,25542.0,0.67982678]
[1693591716781,0.10244589,25543.0,25542.0,0.71782678]
[1693591717091,0.09902589,25543.0,25542.0,0.71782678]
[1693591717259,0.10178589,25543.0,25542.0,0.71782678]
[1693591717475,0.10436589,25543.0,25542.0,0.71782678]
[1693591717676,0.10346589,25543.0,25542.0,0.71782678]
[1693591717879,0.10184589,25543.0,25542.0,0.71782678]
[1693591718085,0.10124589,25543.0,25542.0,0.71782678]
[1693591718240,0.09902589,25543.0,25542.0,0.71782678]
[1693591718442,0.11438589,25543.0,25542.0,0.71782678]
[1693591718685,0.12134589,25543.0,25542.0,0.71782678]
[1693591718888,0.11150589,25543.0,25542.0,0.71782678]
[1693591719242,0.09842589,25543.0,25542.0,0.71782678]
[1693591719443,0.09968589,25543.0,25542.0,0.71782678]
[1693591719644,0.11564589,25543.0,25542.0,0.52208678]
[1693591719820,0.12938589,25543.0,25542.0,0.52208678]
[1693591720049,0.13418589,25543.0,25542.0,0.52208678]
[1693591720225,0.13412589,25543.0,25542.0,0.52208678]
[1693591720462,0.12710589,25543.0,25542.0,0.52208678]
[1693591720656,0.12626589,25543.0,25542.0,0.52208678]
[1693591720861,0.12458589,25543.0,25542.0,0.52208678]
[1693591721083,0.12458589,25543.0,25542.0,0.095]
[1693591721084,0.24612589,25543.0,25542.0,0.095]
[1693591721275,0.24612589,25543.0,25542.0,0.075]
[1693591721276,0.46352894,25543.0,25542.0,0.075]
[1693591721476,0.27054589,25543.0,25542.0,0.075]
[1693591721675,0.27228589,25543.0,25542.0,0.075]
[1693591721901,0.27294589,25543.0,25542.0,0.075]
[1693591722083,0.27450589,25543.0,25542.0,0.075]
[1693591722326,0.42936589,25543.0,25542.0,0.075]
[1693591722531,0.41988589,25543.0,25542.0,0.075]
[1693591722653,0.42636589,25543.0,25542.0,0.075]
[1693591722860,0.28512589,25543.0,25542.0,0.075]
[1693591723038,0.42516589,25543.0,25542.0,0.075]
[1693591723413,0.28260589,25543.0,25542.0,0.075]
[1693591723614,0.28278589,25543.0,25542.0,0.075]
[1693591723792,0.28494589,25543.0,25542.0,0.075]
[1693591724002,0.27876589,25543.0,25542.0,0.075]
[1693591724193,0.27798589,25543.0,25542.0,0.075]
[1693591724396,0.27774589,25543.0,25542.0,0.075]
[1693591724746,0.27660589,25543.0,25542.0,0.075]
[1693591724929,0.27468589,25543.0,25542.0,0.075]
[1693591725083,0.27390589,25543.0,25542.0,0.075]
[1693591725275,0.27396589,25543.0,25542.0,0.075]
[1693591725486,0.26724589,25543.0,25542.0,0.075]
[1693591725687,0.26100589,25543.0,25542.0,0.075]